fUST/lending_fUST_20240324
["ID","MTS","AMOUNT","RATE_DAILY","PERIOD"]
[320315034,1711285856770,-642.22,0.00037734,4]
[320315035,1711285856779,-7849.2,0.00037734,4]
[320315036,1711285856789,-1762.95,0.00037734,4]
[320315037,1711285856798,-322.54,0.00037734,4]
[320315038,1711285856808,-1752.71,0.00037734,4]
[320315039,1711285856817,-296.08,0.00037736,4]
[320315040,1711285856827,-500.0,0.00037736,4]
[320315041,1711285856836,-727.11,0.00037736,4]
[320315042,1711285856846,-668.15,0.00037736,4]
[320315043,1711285856855,-500.0,0.00037736,4]
[320315044,1711285856864,-500.0,0.00037736,4]
[320315045,1711285856874,-500.0,0.00037736,4]
[320315046,1711285856883,-1075.86,0.00037736,4]
[320315047,1711285856892,-500.0,0.00037736,4]
[320315048,1711285856901,-503.92,0.00037736,4]
[320315049,1711285856910,-741.76,0.00037736,4]
[320315050,1711285856920,-153.0,0.00037878,2]
[320315051,1711285856929,-153.0,0.0003789,2]
[320315052,1711285856938,-153.0,0.0003789,2]
[320315053,1711285856948,-153.0,0.0003789,2]
[320315054,1711285856957,-1743.34806754,0.00037893,2]
[320315055,1711285856966,-2000.0,0.00038,16]
[320315056,1711285856975,-823.15,0.00038007,4]
[320315057,1711285856985,-769.02,0.00038007,4]
[320315058,1711285856995,-500.0,0.00038007,4]
[320315059,1711285857004,-6930.09,0.00038007,4]
[320315060,1711285857014,-1250.93,0.00038007,4]
[320315061,1711285857023,-500.0,0.00038007,4]
[320315062,1711285857032,-505.83,0.00038007,4]
[320315063,1711285857041,-1651.97,0.00038007,4]
[320315064,1711285857050,-218.9,0.00038007,4]
[320315065,1711285857061,-575.77,0.00038007,4]
[320315066,1711285857070,-500.0,0.00038007,4]
[320315067,1711285857080,-1500.81,0.00038007,4]
[320315068,1711285857088,-557.74,0.00038007,4]
[320315069,1711285857098,-611.86,0.00038007,4]
[320315070,1711285857107,-575.43,0.00038007,4]
[320315071,1711285857116,-8230.12,0.00038007,4]
[320315072,1711285857126,-3098.52,0.00038007,4]
[320315073,1711285857135,-500.0,0.00038008,4]
[320315074,1711285857146,-500.0,0.00038008,4]
[320315075,1711285857155,-627.88,0.00038008,4]
[320315076,1711285857165,-704.78,0.00038008,4]
[320315077,1711285857174,-1000.0,0.00038008,2]
[320315078,1711285857183,-890.64,0.00038008,4]
[320315079,1711285857192,-861.2,0.00038008,4]
[320315080,1711285857202,-500.0,0.00038008,4]
[320315081,1711285857211,-7849.2,0.00038008,4]
[320315082,1711285857221,-1762.95,0.00038008,4]
[320315083,1711285857231,-1752.71,0.00038008,4]
[320315084,1711285857240,-176.54,0.0003801,4]
[320315085,1711285857250,-727.11,0.0003801,4]
[320315086,1711285857259,-500.0,0.0003801,4]
[320315087,1711285857270,-500.0,0.0003801,4]
[320315088,1711285857278,-500.0,0.0003801,4]
[320315089,1711285857288,-1075.86,0.0003801,4]
[320315090,1711285857297,-503.92,0.0003801,4]
[320315091,1711285857307,-741.76,0.0003801,4]
[320315092,1711285857316,-150.0,0.00038184,2]
[320315093,1711285857325,-823.15,0.00038281,4]
[320315094,1711285857334,-769.02,0.00038281,4]
[320315095,1711285857343,-331.84,0.00038281,4]
[320315096,1711285857352,-6930.09,0.00038281,4]
[320315097,1711285857361,-1250.93,0.00038281,4]
[320315098,1711285857371,-500.0,0.00038281,4]
[320315099,1711285857380,-505.83,0.00038281,4]
[320315100,1711285857389,-1651.97,0.00038281,4]
[320315101,1711285857398,-575.77,0.00038281,4]
[320315102,1711285857407,-500.0,0.00038281,4]
[320315103,1711285857417,-1500.81,0.00038281,4]
[320315104,1711285857426,-557.74,0.00038281,4]
[320315105,1711285857435,-611.86,0.00038281,4]
[320315106,1711285857445,-575.43,0.00038281,4]
[320315107,1711285857454,-8230.12,0.00038281,4]
[320315108,1711285857463,-3098.52,0.00038281,4]
[320315109,1711285857473,-500.0,0.00038282,4]
[320315110,1711285857482,-300.9,0.00038282,4]
[320315111,1711285857491,-627.88,0.00038282,4]
[320315112,1711285857501,-704.78,0.00038282,4]
[320315113,1711285857512,-1000.0,0.00038282,2]
[320315114,1711285857521,-890.64,0.00038282,4]
[320315115,1711285857530,-861.2,0.00038282,4]
[320315116,1711285857540,-500.0,0.00038282,4]
[320315117,1711285857550,-7849.2,0.00038282,4]
[320315118,1711285857559,-1762.95,0.00038282,4]
[320315119,1711285857569,-1752.71,0.00038282,4]
[320315120,1711285857578,-727.11,0.00038284,4]
[320315121,1711285857587,-500.0,0.00038284,4]
[320315122,1711285857597,-488.16,0.00038284,4]
[320315123,1711285857606,-500.0,0.00038284,4]
[320315124,1711285857615,-1075.86,0.00038284,4]
[320315125,1711285857625,-1348.64,0.00038284,4]
[320315126,1711285857636,-503.92,0.00038284,4]
[320315127,1711285857645,-741.76,0.00038284,4]
[320315128,1711285857655,-153.000001,0.00038478,2]
[320315129,1711285857664,-153.0,0.00038478,2]
[320315130,1711285857674,-153.0,0.00038478,2]
[320315131,1711285857683,-153.0,0.00038478,2]
[320315132,1711285857692,-153.0,0.00038478,2]
[320315133,1711285857702,-153.0,0.00038478,2]
[320315134,1711285857714,-153.0,0.00038478,2]
[320315135,1711285857723,-153.0,0.00038478,2]
[320315136,1711285857733,-823.15,0.00038555,4]
[320315137,1711285857742,-769.02,0.00038555,4]
[320315138,1711285857753,-6930.09,0.00038555,4]
[320315139,1711285857763,-1250.93,0.00038555,4]
[320315140,1711285857772,-500.0,0.00038555,4]
[320315141,1711285857783,-505.83,0.00038555,4]
[320315142,1711285857793,-1651.97,0.00038555,4]
[320315143,1711285857804,-575.77,0.00038555,4]
[320315144,1711285857813,-500.0,0.00038555,4]
[320315145,1711285857823,-1500.81,0.00038555,4]
[320315146,1711285857832,-557.74,0.00038555,4]
[320315147,1711285857842,-611.86,0.00038555,4]
[320315148,1711285857852,-575.43,0.00038555,4]
[320315149,1711285857861,-8230.12,0.00038555,4]
[320315150,1711285857871,-3098.52,0.00038555,4]
[320315151,1711285857880,-500.0,0.00038556,4]
[320315152,1711285857890,-627.88,0.00038556,4]
[320315153,1711285857900,-704.78,0.00038556,4]
[320315154,1711285857909,-1000.0,0.00038556,2]
[320315155,1711285857918,-890.64,0.00038556,4]
[320315156,1711285857928,-861.2,0.00038556,4]
[320315157,1711285857938,-500.0,0.00038556,4]
[320315158,1711285857948,-7849.2,0.00038556,4]
[320315159,1711285857958,-1762.95,0.00038556,4]
[320315160,1711285857967,-2501.026139,0.00038556,2]
[320315161,1711285857976,-2501.026139,0.00038556,2]
[320315162,1711285857988,-151.0,0.00038556,2]
[320315163,1711285857997,-1752.71,0.00038556,4]
[320315164,1711285858007,-151.0,0.00038556,2]
[320315165,1711285858018,-153.845731,0.00038556,2]
[320315166,1711285858028,-153.845731,0.00038556,2]
[320315167,1711285858038,-727.11,0.00038558,4]
[320315168,1711285858047,-668.15,0.00038558,4]
[320315169,1711285858057,-668.15,0.00038558,4]
[320315170,1711285858066,-668.15,0.00038558,4]
[320315171,1711285858076,-668.15,0.00038558,4]
[320315172,1711285858085,-668.32943778,0.00038558,4]
[320315173,1711285858094,-500.0,0.00038558,4]
[320315174,1711285858103,-478.9,0.00038558,4]
[320315175,1711285858112,-1075.86,0.00038558,4]
[320315176,1711285858181,-500.0,0.00038558,4]
[320315177,1711285858196,-500.0,0.00038558,4]
[320315178,1711285858205,-409.25842123,0.00038558,4]
[320315179,1711285858216,-503.92,0.00038558,4]
[320315180,1711285858226,-741.76,0.00038558,4]
[320315181,1711285858237,-216.1171733,0.00038685,2]
[320315182,1711285858246,-153.0,0.00038685,2]
[320315183,1711285858255,-153.0,0.00038685,2]
[320315184,1711285858264,-153.0,0.00038685,2]
[320315185,1711285858274,-153.0,0.00038685,2]
[320315186,1711285858283,-153.0,0.000387,2]
[320315187,1711285858293,-153.0,0.000387,2]
[320315188,1711285858304,-153.0,0.000387,2]
[320315189,1711285858313,-153.0,0.000387,2]
[320315190,1711285858322,-153.0,0.000387,2]
[320315191,1711285858334,-153.0,0.000387,2]
[320315192,1711285858344,-153.0,0.000387,2]
[320315193,1711285858354,-153.0,0.000387,2]
[320315194,1711285858363,-153.0,0.000387,2]
[320315195,1711285858372,-153.0,0.000387,2]
[320315196,1711285858381,-305.999999,0.000387,2]
[320315197,1711285858390,-425.394987,0.000387,2]
[320315198,1711285858399,-425.394987,0.000387,2]
[320315199,1711285858408,-152.045509,0.000387,2]
[320315200,1711285858417,-151.0,0.000387,2]
[320315201,1711285858428,-150.90945433,0.0003879,2]
[320315202,1711285858437,-823.15,0.00038829,4]
[320315203,1711285858447,-769.02,0.00038829,4]
[320315204,1711285858457,-6930.09,0.00038829,4]
[320315205,1711285858466,-1250.93,0.00038829,4]
[320315206,1711285858475,-500.0,0.00038829,4]
[320315207,1711285858484,-505.83,0.00038829,4]
[320315208,1711285858493,-1651.97,0.00038829,4]
[320315209,1711285858503,-575.77,0.00038829,4]
[320315210,1711285858513,-364.55,0.00038829,4]
[320315211,1711285858523,-1500.81,0.00038829,4]
[320315212,1711285858533,-557.74,0.00038829,4]
[320315213,1711285858542,-611.86,0.00038829,4]
[320315214,1711285858553,-575.43,0.00038829,4]
[320315215,1711285858562,-8230.12,0.00038829,4]
[320315216,1711285858571,-3098.52,0.00038829,4]
[320315217,1711285858580,-500.0,0.0003883,4]
[320315218,1711285858589,-627.88,0.0003883,4]
[320315219,1711285858598,-1593.041834,0.0003883,2]
[320315220,1711285858607,-1593.041834,0.0003883,2]
[320315221,1711285858617,-680.450779,0.0003883,2]
[320315222,1711285858626,-680.450779,0.0003883,2]
[320315223,1711285858635,-704.78,0.0003883,4]
[320315224,1711285858645,-1000.0,0.0003883,2]
[320315225,1711285858654,-890.64,0.0003883,4]
[320315226,1711285858663,-861.2,0.0003883,4]
[320315227,1711285858673,-500.0,0.0003883,4]
[320315228,1711285858682,-7849.2,0.0003883,4]
[320315229,1711285858691,-1762.95,0.0003883,4]
[320315230,1711285858701,-1752.71,0.0003883,4]
[320315231,1711285858713,-727.11,0.00038832,4]
[320315232,1711285858723,-500.0,0.00038832,4]
[320315233,1711285858734,-1075.86,0.00038832,4]
[320315234,1711285858743,-503.92,0.00038832,4]
[320315235,1711285858755,-741.76,0.00038832,4]
[320315236,1711285858764,-956.27,0.00039,24]
[320315237,1711285858774,-2000.0,0.00039,24]
[320315238,1711285858783,-1000.0,0.00039006,2]
[320315239,1711285858794,-1000.0,0.00039006,2]
[320315240,1711285858803,-1000.0,0.00039015,2]
[320315241,1711285858814,-1000.0,0.00039073,2]
[320315242,1711285858824,-1000.0,0.00039077,2]
[320315243,1711285858833,-823.15,0.00039103,4]
[320315244,1711285858843,-769.02,0.00039103,4]
[320315245,1711285858852,-6930.09,0.00039103,4]
[320315246,1711285858862,-1250.93,0.00039103,4]
[320315247,1711285858871,-500.0,0.00039103,4]
[320315248,1711285858880,-505.83,0.00039103,4]
[320315249,1711285858890,-1651.97,0.00039103,4]
[320315250,1711285858899,-575.77,0.00039103,4]
[320315251,1711285858909,-1500.81,0.00039103,4]
[320315252,1711285858918,-557.74,0.00039103,4]
[320315253,1711285858928,-611.86,0.00039103,4]
[320315254,1711285858938,-575.43,0.00039103,4]
[320315255,1711285858947,-8230.12,0.00039103,4]
[320315256,1711285858956,-3098.52,0.00039103,4]
[320315257,1711285858966,-500.0,0.00039104,4]
[320315258,1711285858975,-627.88,0.00039104,4]
[320315259,1711285858984,-704.78,0.00039104,4]
[320315260,1711285858994,-1000.0,0.00039104,2]
[320315261,1711285859003,-890.64,0.00039104,4]
[320315262,1711285859013,-861.2,0.00039104,4]
[320315263,1711285859021,-500.0,0.00039104,4]
[320315264,1711285859031,-7849.2,0.00039104,4]
[320315265,1711285859041,-1762.95,0.00039104,4]
[320315266,1711285859050,-1752.71,0.00039104,4]
[320315267,1711285859061,-727.11,0.00039106,4]
[320315268,1711285859070,-500.0,0.00039106,4]
[320315269,1711285859080,-1075.86,0.00039106,4]
[320315270,1711285859089,-503.92,0.00039106,4]
[320315271,1711285859099,-741.76,0.00039106,4]
[320315272,1711285859108,-1000.0,0.00039117,2]
[320315273,1711285859117,-1000.0,0.00039129,2]
[320315274,1711285859127,-1000.0,0.00039157,2]
[320315275,1711285859136,-1000.0,0.00039184,2]
[320315276,1711285859145,-1000.0,0.00039187,2]
[320315277,1711285859154,-1000.0,0.00039189,2]
[320315278,1711285859164,-7752.82337168,0.00039195,5]
[320315279,1711285859173,-400.0,0.000392,14]
[320315280,1711285859182,-400.0,0.000392,14]
[320315281,1711285859192,-400.0,0.000392,14]
[320315282,1711285859202,-800.0,0.000392,14]
[320315283,1711285859212,-800.0,0.000392,14]
[320315284,1711285859223,-800.0,0.000392,14]
[320315285,1711285859234,-183.96895006,0.00039212,2]
[320315286,1711285859243,-1000.0,0.00039226,2]
[320315287,1711285859253,-1000.0,0.00039226,2]
[320315288,1711285859263,-1348.64,0.00039233,4]
[320315289,1711285859272,-238.89982239,0.00039234,4]
[320315290,1711285859281,-608.1000851,0.00039234,4]
[320315291,1711285859291,-155.01820409,0.00039234,4]
[320315292,1711285859301,-322.32564277,0.00039234,4]
[320315293,1711285859310,-347.43641547,0.00039234,4]
[320315294,1711285859319,-289.81431496,0.00039234,2]
[320315295,1711285859328,-154.9903471,0.00039234,4]
[320315296,1711285859337,-163.6556921,0.00039234,4]
[320315297,1711285859347,-756.68166595,0.00039235,4]
[320315298,1711285859357,-1232.68534455,0.00039235,4]
[320315299,1711285859366,-170.54637735,0.00039235,4]
[320315300,1711285859375,-180.50502246,0.00039235,5]
[320315301,1711285859383,-280.4670304,0.00039235,4]
[320315302,1711285859392,-157.81403051,0.00039235,4]
[320315303,1711285859401,-203.4180924,0.00039235,4]
[320315304,1711285859410,-180.00507239,0.00039236,4]
[320315305,1711285859420,-294.63072837,0.00039236,4]
[320315306,1711285859430,-155.63920145,0.00039236,4]
[320315307,1711285859440,-308.16008741,0.00039236,4]
[320315308,1711285859450,-155.30824863,0.00039236,4]
[320315309,1711285859517,-503.04310167,0.00039236,4]
[320315310,1711285859533,-669.71033152,0.00039236,4]
[320315311,1711285859543,-759.46506956,0.00039236,4]
[320315312,1711285859552,-309.72125397,0.00039236,4]
[320315313,1711285859562,-275.33717884,0.00039236,4]
[320315314,1711285859571,-876.88094129,0.00039236,4]
[320315315,1711285859581,-271.13061417,0.00039236,2]
[320315316,1711285859591,-1652.784023,0.00039236,4]
[320315317,1711285859600,-250.49828033,0.00039236,120]
[320315318,1711285859610,-183.62591906,0.00039236,4]
[320315319,1711285859620,-155.32448019,0.00039236,4]
[320315320,1711285859629,-211.59352232,0.00039236,4]
[320315321,1711285859639,-165.31379925,0.00039236,2]
[320315322,1711285859649,-616.97666661,0.00039236,4]
[320315323,1711285859658,-3793.08240399,0.00039236,4]
[320315324,1711285859667,-1006.70175272,0.00039236,4]
[320315325,1711285859677,-155.17356614,0.00039236,4]
[320315326,1711285859687,-390.65461384,0.00039236,4]
[320315327,1711285859697,-222.63858692,0.00039236,4]
[320315328,1711285859711,-166.06741547,0.00039236,4]
[320315329,1711285859721,-191.47248114,0.00039236,4]
[320315330,1711285859732,-379.2527521,0.00039236,4]
[320315331,1711285859743,-807.30445512,0.00039236,4]
[320315332,1711285859754,-175.53572409,0.00039236,4]
[320315333,1711285859764,-407.48152806,0.00039236,4]
[320315334,1711285859773,-687.18971285,0.00039236,4]
[320315335,1711285859785,-325.19839158,0.00039236,4]
[320315336,1711285859794,-598.94806316,0.00039236,4]
[320315337,1711285859803,-169.5424443,0.00039236,4]
[320315338,1711285859812,-208.57629394,0.00039236,4]
[320315339,1711285859822,-309.70578029,0.00039236,4]
[320315340,1711285859831,-180.03197427,0.00039236,4]
[320315341,1711285859841,-599.63041092,0.00039236,4]
[320315342,1711285859850,-1348.64,0.00039236,4]
[320315343,1711285859860,-1348.64,0.00039236,4]
[320315344,1711285859870,-1312.43095433,0.00039237,4]
[320315345,1711285859880,-308.98539759,0.00039237,4]
[320315346,1711285859889,-602.93757777,0.00039237,4]
[320315347,1711285859899,-500.0,0.00039237,4]
[320315348,1711285859908,-500.0,0.00039237,4]
[320315349,1711285859917,-500.0,0.00039237,4]
[320315350,1711285859927,-500.0,0.00039237,4]
[320315351,1711285859937,-500.0,0.00039237,4]
[320315352,1711285859947,-500.0,0.00039237,4]
[320315353,1711285859957,-500.0,0.00039237,4]
[320315354,1711285859966,-500.0,0.00039237,4]
[320315355,1711285859975,-500.0,0.00039237,4]
[320315356,1711285859988,-500.0,0.00039237,4]
[320315357,1711285859998,-340.46604157,0.00039237,4]
[320315358,1711285860007,-500.0,0.00039237,4]
[320315359,1711285860016,-500.0,0.00039237,4]
[320315360,1711285860026,-500.0,0.00039237,4]
[320315361,1711285860035,-500.0,0.00039237,4]
[320315362,1711285860045,-500.0,0.00039237,4]
[320315363,1711285860055,-500.0,0.00039237,4]
[320315364,1711285860064,-500.0,0.00039237,4]
[320315365,1711285860074,-832.03,0.00039237,4]
[320315366,1711285860083,-500.0,0.00039237,4]
[320315367,1711285860092,-500.0,0.00039237,4]
[320315368,1711285860101,-703.5,0.00039237,4]
[320315369,1711285860110,-723.55,0.00039237,4]
[320315370,1711285860119,-500.0,0.00039237,4]
[320315371,1711285860130,-500.0,0.00039237,4]
[320315372,1711285860141,-500.0,0.00039237,4]
[320315373,1711285860151,-500.0,0.00039237,4]
[320315374,1711285860160,-500.0,0.00039237,4]
[320315375,1711285860170,-456.57094567,0.00039237,4]
[320315376,1711285860180,-525.27930729,0.00039237,4]
[320315377,1711285860190,-500.0,0.00039237,4]
[320315378,1711285860199,-500.0,0.00039237,4]
[320315379,1711285860208,-500.0,0.00039237,4]
[320315380,1711285860217,-600.72396207,0.00039237,4]
[320315381,1711285860226,-500.0,0.00039237,4]
[320315382,1711285860238,-1348.64,0.00039237,4]
[320315383,1711285860247,-53874.13105205,0.00039238,30]
[320315384,1711285860257,-2909.14940549,0.00039238,4]
[320315385,1711285860267,-753.29276324,0.00039238,4]
[320315386,1711285860277,-217.45225405,0.00039238,2]
[320315387,1711285860287,-423.01830251,0.00039238,2]
[320315388,1711285860296,-2501.026139,0.00039238,2]
[320315389,1711285860307,-2501.026139,0.00039238,2]
[320315390,1711285860316,-1348.64,0.00039238,4]
[320315391,1711285860325,-1348.64,0.00039238,4]
[320315392,1711285860335,-1348.64,0.00039238,4]
[320315393,1711285860345,-1348.64,0.00039238,4]
[320315394,1711285860356,-1348.65466831,0.00039238,4]
[320315395,1711285860365,-153.845731,0.00039238,2]
[320315396,1711285860374,-153.845731,0.00039238,2]
[320315397,1711285860384,-500.0,0.00039239,4]
[320315398,1711285860393,-500.0,0.00039239,4]
[320315399,1711285860401,-500.0,0.00039239,4]
[320315400,1711285860411,-295.03895098,0.00039239,4]
[320315401,1711285860420,-1593.041834,0.00039239,2]
[320315402,1711285860429,-1593.041834,0.00039239,2]
[320315403,1711285860441,-680.450779,0.00039239,2]
[320315404,1711285860452,-680.450779,0.00039239,2]
[320315405,1711285860462,-151.0,0.00039239,2]
[320315406,1711285860471,-425.394987,0.00039239,2]
[320315407,1711285860480,-425.394987,0.00039239,2]
[320315408,1711285860492,-151.0,0.00039239,2]
[320315409,1711285860501,-151.0,0.00039239,2]
[320315410,1711285860510,-151.0,0.00039239,2]
[320315411,1711285860519,-47290.48710661,0.0003924,21]
[320315412,1711285860701,-703889.13041299,0.0003924,21]
[320315413,1711285860712,-1048.94744644,0.0003924,21]
[320315414,1711285860723,-151.0,0.0003924,2]
[320315415,1711285860733,-459.985919,0.0003924,2]
[320315416,1711285860742,-459.985919,0.0003924,2]
[320315417,1711285860752,-151.0,0.0003924,2]
[320315418,1711285860761,-151.0,0.0003924,2]
[320315419,1711285860770,-1593.041834,0.0003924,2]
[320315420,1711285860780,-1593.041834,0.0003924,2]
[320315421,1711285860792,-680.450779,0.0003924,2]
[320315422,1711285860801,-680.450779,0.0003924,2]
[320315423,1711285860811,-151.0,0.0003924,2]
[320315424,1711285860822,-425.394987,0.0003924,2]
[320315425,1711285860832,-425.394987,0.0003924,2]
[320315426,1711285860842,-151.0,0.0003924,2]
[320315427,1711285860851,-2501.026139,0.0003924,2]
[320315428,1711285860860,-2501.026139,0.0003924,2]
[320315429,1711285860870,-151.0,0.0003924,2]
[320315430,1711285860880,-151.0,0.0003924,2]
[320315431,1711285860889,-153.845731,0.0003924,2]
[320315432,1711285860903,-153.845731,0.0003924,2]
[320315433,1711285860913,-11854.37635367,0.000393,2]
[320315434,1711285860931,-500.0,0.00035542,2]
[320315435,1711285860940,-37131.02433019,0.000393,2]
[320315436,1711285860949,-153.0,0.000393,2]
[320315437,1711285860959,-153.0,0.000393,2]
[320315438,1711285860968,-153.0,0.000393,2]
[320315439,1711285860977,-823.15,0.00039377,4]
[320315440,1711285860988,-769.02,0.00039377,4]
[320315441,1711285860997,-881.88242249,0.00039377,4]
[320315442,1711285861819,-6048.20757751,0.00039377,4]
[320315443,1711285861828,-1250.93,0.00039377,4]
[320315444,1711285861838,-500.0,0.00039377,4]
[320315445,1711285861847,-505.83,0.00039377,4]
[320315446,1711285861857,-1651.97,0.00039377,4]
[320315447,1711285861866,-575.77,0.00039377,4]
[320315448,1711285861938,-1500.81,0.00039377,4]
[320315449,1711285861947,-557.74,0.00039377,4]
[320315450,1711285861957,-611.86,0.00039377,4]
[320315451,1711285861968,-575.43,0.00039377,4]
[320315452,1711285861978,-8230.12,0.00039377,4]
[320315453,1711285861990,-3098.52,0.00039377,4]
[320315454,1711285861999,-431.14,0.00039378,4]
[320315455,1711285862008,-627.88,0.00039378,4]
[320315456,1711285862018,-704.78,0.00039378,4]
[320315457,1711285862027,-1000.0,0.00039378,2]
[320315458,1711285862036,-890.64,0.00039378,4]
[320315459,1711285862047,-861.2,0.00039378,4]
[320315460,1711285862056,-500.0,0.00039378,4]
[320315461,1711285862066,-7849.2,0.00039378,4]
[320315462,1711285862075,-1762.95,0.00039378,4]
[320315463,1711285862085,-1752.71,0.00039378,4]
[320315464,1711285862094,-727.11,0.0003938,4]
[320315465,1711285862103,-500.0,0.0003938,4]
[320315466,1711285862113,-1075.86,0.0003938,4]
[320315467,1711285862122,-503.92,0.0003938,4]
[320315468,1711285862131,-741.76,0.0003938,4]
[320315469,1711285862140,-301.81890865,0.00039442,4]
[320315470,1711285862150,-153.0,0.00039507,2]
[320315471,1711285862159,-153.0,0.00039507,2]
[320315472,1711285862169,-153.0,0.00039507,2]
[320315473,1711285862178,-153.0,0.00039507,2]
[320315474,1711285862187,-153.0,0.00039507,2]
[320315475,1711285862196,-306.0,0.00039507,2]
[320315476,1711285862207,-153.0,0.00039507,2]
[320315477,1711285862217,-306.0,0.00039507,2]
[320315478,1711285862226,-153.0,0.00039507,2]
[320315479,1711285862237,-500.0,0.00039511,4]
[320315480,1711285862246,-500.0,0.00039511,4]
[320315481,1711285862255,-500.0,0.00039511,4]
[320315482,1711285862264,-225.13757817,0.00039511,4]
[320315483,1711285862274,-500.0,0.00039511,4]
[320315484,1711285862284,-500.0,0.00039511,4]
[320315485,1711285862293,-500.0,0.00039511,4]
[320315486,1711285862302,-500.0,0.00039511,4]
[320315487,1711285862311,-500.0,0.00039511,4]
[320315488,1711285862321,-500.0,0.00039511,4]
[320315489,1711285862330,-500.0,0.00039511,4]
[320315490,1711285862340,-500.0,0.00039511,4]
[320315491,1711285862349,-500.0,0.00039511,4]
[320315492,1711285862360,-500.0,0.00039511,4]
[320315493,1711285862369,-500.0,0.00039511,4]
[320315494,1711285862379,-832.03,0.00039511,4]
[320315495,1711285862388,-500.0,0.00039511,4]
[320315496,1711285862398,-500.0,0.00039511,4]
[320315497,1711285862408,-703.5,0.00039511,4]
[320315498,1711285862418,-723.55,0.00039511,4]
[320315499,1711285862430,-604.14724391,0.00039511,4]
[320315500,1711285862439,-500.0,0.00039511,4]
[320315501,1711285862449,-500.0,0.00039511,4]
[320315502,1711285862459,-500.0,0.00039511,4]
[320315503,1711285862468,-500.0,0.00039511,4]
[320315504,1711285862477,-500.0,0.00039511,4]
[320315505,1711285862488,-500.0,0.00039511,4]
[320315506,1711285862498,-203.86620209,0.00039511,4]
[320315507,1711285862507,-500.0,0.00039511,4]
[320315508,1711285862518,-1000.0,0.00039637,3]
[320315509,1711285862528,-823.15,0.00039651,4]
[320315510,1711285862537,-769.02,0.00039651,4]
[320315511,1711285862546,-6930.09,0.00039651,4]
[320315512,1711285862557,-1250.93,0.00039651,4]
[320315513,1711285862566,-499.8,0.00039651,4]
[320315514,1711285862575,-505.83,0.00039651,4]
[320315515,1711285862585,-1651.97,0.00039651,4]
[320315516,1711285862594,-575.77,0.00039651,4]
[320315517,1711285862603,-1500.81,0.00039651,4]
[320315518,1711285862612,-557.74,0.00039651,4]
[320315519,1711285862622,-611.86,0.00039651,4]
[320315520,1711285862631,-575.43,0.00039651,4]
[320315521,1711285862640,-4349.85018651,0.00039651,4]
[320315522,1711285862654,-789.56762088,0.00039651,4]
[320315523,1711285862824,-500.0,0.00035816,4]
[320315524,1711285862835,-500.0,0.0003609,4]
[320315525,1711285862845,-500.0,0.00036364,4]
[320315526,1711285862854,-500.0,0.00036638,4]
[320315527,1711285862864,-500.0,0.00036912,4]
[320315528,1711285862873,-500.0,0.00037186,4]
[320315529,1711285862883,-500.0,0.0003746,4]
[320315530,1711285862893,-500.0,0.00037734,4]
[320315531,1711285862903,-500.0,0.00038008,4]
[320315532,1711285862912,-638.7,0.00038282,4]
[320315533,1711285862983,-2667.68003822,0.00039651,4]